bitfinex-derivatives/quotes_SOLF0:USTF0_20260211
["timestamp","ask_amount","ask_price","bid_price","bid_amount"]
[1770773442542,2.95185198,83.35,83.306,27.67134584]
[1770773443144,10.805,83.349,83.306,27.67134584]
[1770773443645,2.95185198,83.35,83.309,27.67134584]
[1770773443845,10.8041,83.356,83.309,27.67134584]
[1770773444840,10.8041,83.356,83.312,27.66432273]
[1770773446338,2.95185198,83.35,83.312,27.66432273]
[1770773446845,10.8041,83.356,83.314,27.68845876]
[1770773450151,10.8028,83.366,83.321,27.68976997]
[1770773450847,21.5965,83.401,83.323,27.69061675]
[1770773450848,10.8016,83.375,83.323,27.69061675]
[1770773451642,2.95185198,83.37,83.323,27.69061675]
[1770773451848,2.95185198,83.37,83.33,27.69061675]
[1770773454651,10.8032,83.363,83.33,27.69061675]
[1770773455851,2.95185198,83.36,83.33,27.69061675]
[1770773456745,2.94957536,83.36,83.33,27.69061675]
[1770773456946,13.75317536,83.36,83.324,27.71767729]
[1770773457651,2.94957536,83.36,83.324,27.71767729]
[1770773459044,13.75307536,83.36,83.324,27.71767729]
[1770773459547,2.94957536,83.36,83.314,27.72034305]
[1770773460241,2.94957536,83.34,83.314,27.72034305]
[1770773461452,2.94957536,83.36,83.314,27.72034305]
[1770773462052,95.76,83.368,83.32,27.71725016]
[1770773462247,2.94957536,83.37,83.32,27.71725016]
[1770773463555,10.8033,83.362,83.323,27.72043321]
[1770773464855,10.8033,83.362,83.325,27.73948068]
[1770773465255,2.94957536,83.36,83.325,27.73948068]
[1770773467761,10.8039,83.357,83.325,27.73948068]
[1770773468158,10.8049,83.35,83.311,27.75185124]
[1770773468364,13.75447536,83.35,83.311,27.75185124]
[1770773470556,10.8056,83.344,83.311,27.75185124]
[1770773471357,2.94957536,83.38,83.321,27.73874237]
[1770773471559,8.71822186,83.379,83.321,27.73874237]
[1770773471856,8.71822186,83.378,83.321,27.73874237]
[1770773472062,8.71822186,83.377,83.321,27.73874237]
[1770773472263,2.94957536,83.38,83.321,27.73874237]
[1770773472456,8.71667579,83.379,83.321,27.73874237]
[1770773472660,8.71667579,83.378,83.321,27.73874237]
[1770773472861,10.8033,83.362,83.321,27.73874237]
[1770773473160,21.5969,83.4,83.321,27.73874237]
[1770773473161,2.94957536,83.37,83.321,27.73874237]
[1770773473361,10.8041,83.356,83.321,27.73874237]
[1770773475663,10.8032,83.363,83.321,27.73874237]
[1770773476163,2.94957536,83.37,83.321,27.73874237]
[1770773476368,2.94957536,83.36,83.321,27.73874237]
[1770773476868,2.94957536,83.34,83.296,27.67523335]
[1770773477072,2.94957536,83.33,83.296,27.67523335]
[1770773477871,2.94957536,83.34,83.296,27.67523335]
[1770773478067,2.94957536,83.34,83.237,36.07]
[1770773478068,2.94957536,83.36,83.301,27.67523335]
[1770773478263,10.8037,83.359,83.313,27.67523335]
[1770773479465,10.8025,83.368,83.315,27.67429176]
[1770773480468,10.8025,83.368,83.308,22.4526801]
[1770773480469,10.8025,83.368,83.321,27.67391877]
[1770773483068,2.94909426,83.36,83.321,27.67391877]
[1770773490077,2.94909426,83.35,83.321,27.67391877]
[1770773491974,10.8048,83.351,83.321,27.67391877]
[1770773493586,10.8039,83.357,83.321,27.67391877]
[1770773493981,32.82658293,83.386,83.321,27.67391877]
[1770773493982,2.94909426,83.37,83.321,27.67391877]
[1770773495485,106.98608293,83.393,83.31,2.94909426]
[1770773495486,2.94909426,83.38,83.331,27.6776653]
[1770773495693,21.5958,83.404,83.288,51.33515192]
[1770773495694,2.94909426,83.4,83.341,27.6776653]
[1770773495885,8.71287616,83.399,83.341,27.6776653]
[1770773496084,8.71287616,83.398,83.341,27.6776653]
[1770773496284,2.94909426,83.4,83.341,27.6776653]
[1770773496682,10.7993,83.393,83.343,27.66191772]
[1770773497187,10.7993,83.393,83.351,27.66191772]
[1770773497484,10.7982,83.402,83.351,27.66191772]
[1770773497879,10.799,83.396,83.351,27.66191772]
[1770773498084,2.94909426,83.4,83.351,27.66191772]
[1770773498987,10.799,83.395,83.351,27.66191772]
[1770773499593,2.94909426,83.4,83.351,27.66191772]
[1770773501287,8.70283216,83.426,83.36,2.94909426]
[1770773501490,2.94909426,83.43,83.371,27.65975667]
[1770773501992,10.7959,83.419,83.371,27.65975667]
[1770773503387,10.7946,83.429,83.381,27.63991818]
[1770773504793,10.7935,83.438,83.391,27.62757158]
[1770773504991,2.94909426,83.45,83.391,27.62757158]
[1770773505191,446.0,83.5,83.347,21.6104]
[1770773505192,2.94909426,83.46,83.401,27.62757158]
[1770773505493,2.94909426,83.45,83.401,27.62757158]
[1770773506297,10.7936,83.437,83.401,27.62757158]
[1770773508686,10.7926,83.445,83.401,27.62757158]
[1770773512895,10.7934,83.439,83.401,27.62757158]
[1770773515890,10.7942,83.432,83.401,27.62757158]
[1770773520310,10.7951,83.426,83.381,27.47441521]
[1770773521400,2.94909426,83.42,83.381,27.47441521]
[1770773522299,2.94909426,83.43,83.381,27.47441521]
[1770773523000,10.7956,83.422,83.381,27.47441521]
[1770773523209,2.94909426,83.44,83.381,27.47441521]
[1770773523707,10.7946,83.429,83.381,27.47441521]
[1770773524102,2.94909426,83.44,83.391,27.47685045]
[1770773525004,2.94909426,83.43,83.391,27.47685045]
[1770773525308,2.94909426,83.44,83.391,27.47685045]
[1770773525504,10.795,83.426,83.391,27.47685045]
[1770773525706,2.94909426,83.44,83.391,27.47685045]
[1770773526606,10.794,83.434,83.391,27.47685045]
[1770773527001,2.94909426,83.45,83.391,27.47685045]
[1770773528003,10.7928,83.443,83.396,27.48763749]
[1770773530109,2.94909426,83.44,83.396,27.48763749]
[1770773530609,2.94909426,83.44,83.397,10.7987]
[1770773530809,2.94909426,83.44,83.398,27.50948838]
[1770773532304,2.94909426,83.44,83.401,27.50820063]
[1770773534206,13.74109426,83.45,83.401,27.50820063]
[1770773534408,8.2,83.449,83.401,27.50820063]
[1770773534914,10.7924,83.446,83.401,27.50820063]
[1770773536503,2.94909426,83.44,83.403,27.50801272]
[1770773536911,8.2,83.449,83.403,27.50801272]
[1770773537110,8.2,83.449,83.411,27.50801272]
[1770773537515,8.2,83.449,83.415,27.50801272]
[1770773539912,8.2,83.449,83.421,27.50322984]
[1770773540322,2.94909426,83.48,83.431,23.39114558]
[1770773540910,10.7882,83.479,83.431,23.39114558]
[1770773541310,2.94909426,83.46,83.42,23.39114558]
[1770773542116,2.94909426,83.45,83.409,23.39114558]
[1770773542320,2.94909426,83.47,83.411,23.43052225]
[1770773542819,2.94909426,83.47,83.424,23.43052225]
[1770773543714,10.7895,83.469,83.426,23.43052225]
[1770773544820,2.94909426,83.46,83.426,23.43052225]
[1770773545120,2.94237257,83.46,83.426,23.43052225]
[1770773545820,10.7907,83.459,83.426,23.43052225]
[1770773550126,2.94237257,83.46,83.426,23.43052225]
[1770773550320,10.7898,83.467,83.426,23.43052225]
[1770773551018,2.94237257,83.47,83.432,23.48349801]
[1770773551424,13.73177257,83.47,83.432,23.48349801]
[1770773551618,6.06,83.471,83.432,23.48349801]
[1770773552722,6.06,83.471,83.434,23.46545311]
[1770773552922,2.94237257,83.47,83.434,23.46545311]
[1770773553424,2.94237257,83.46,83.434,23.46545311]
[1770773554526,13.73177257,83.47,83.434,23.46545311]
[1770773555726,2.94237257,83.47,83.434,23.46545311]
[1770773558629,6.06,83.471,83.434,23.46545311]
[1770773558928,2.94237257,83.47,83.434,23.46545311]
[1770773559728,6.06,83.471,83.436,23.49071822]
[1770773563723,2.94237257,83.47,83.436,23.49071822]
[1770773566623,6.06,83.471,83.436,23.49071822]
[1770773568234,6.06,83.471,83.439,23.472632]
[1770773569133,10.7882,83.479,83.439,23.472632]
[1770773572832,10.7884,83.477,83.439,23.472632]
[1770773574033,10.7897,83.467,83.425,23.47380987]
[1770773574329,2.94136142,83.46,83.425,23.47380987]
[1770773576129,10.7897,83.467,83.425,23.47380987]
[1770773579339,10.7904,83.462,83.425,23.47380987]
[1770773580237,10.7911,83.456,83.425,23.47380987]
[1770773580838,2.94136142,83.45,83.401,23.4921647]
[1770773581140,6.05,83.478,83.401,23.4921647]
[1770773581141,2.94136142,83.44,83.401,23.4921647]
[1770773582735,10.7934,83.439,83.401,23.4921647]
[1770773587043,2.94136142,83.43,83.401,23.4921647]
[1770773589543,10.7942,83.433,83.401,23.4921647]
[1770773590840,2.94136142,83.44,83.401,23.4921647]
[1770773591145,2.94136142,83.43,83.374,10.8016]
[1770773591340,2.94136142,83.42,83.374,10.8016]
[1770773591942,2.94136142,83.41,83.363,10.8031]
[1770773592444,2.94136142,83.41,83.36,2.94136142]
[1770773592746,10.7981,83.402,83.36,2.94136142]
[1770773592946,10.7981,83.402,83.361,14.35356125]
[1770773593537,2.94136142,83.41,83.362,10.8032]
[1770773593743,2.94136142,83.43,83.381,14.35356125]
[1770773594751,2.94136142,83.43,83.35,22.4526801]
[1770773594752,2.94136142,83.43,83.384,14.36312876]
[1770773597742,2.94136142,83.43,83.386,14.35688311]
[1770773598843,10.7944,83.431,83.393,14.34205253]
[1770773599049,2.94136142,83.43,83.393,14.34205253]
[1770773602245,10.7946,83.429,83.393,14.34205253]
[1770773603048,10.7946,83.429,83.394,10.7991]
[1770773603248,10.7946,83.429,83.395,14.33984474]
[1770773605550,2.94136142,83.42,83.395,14.33984474]
[1770773606942,2.9451468,83.42,83.395,14.33984474]
[1770773608551,2.9451468,83.43,83.395,14.33984474]
[1770773609150,2.9451468,83.43,83.4,14.32897861]
[1770773609354,2.9451468,83.44,83.4,14.32897861]
[1770773610148,10.7921,83.449,83.401,10.7982]
[1770773610354,10.7921,83.449,83.402,14.32068906]
[1770773611749,10.7921,83.449,83.405,10.7976]
[1770773611951,10.7921,83.449,83.406,14.30822817]
[1770773616157,2.9451468,83.46,83.423,14.24410442]
[1770773617754,10.7907,83.459,83.423,14.24410442]
[1770773617957,2.9451468,83.45,83.423,14.24410442]
[1770773619053,2.9451468,83.46,83.411,14.30211577]
[1770773619255,2.9451468,83.45,83.411,14.30211577]
[1770773619955,2.9451468,83.44,83.411,14.30211577]
[1770773620253,2.9451468,83.43,83.383,14.25972477]
[1770773620460,2.9451468,83.43,83.361,22.4526801]
[1770773620461,2.9451468,83.41,83.361,14.25972477]
[1770773620757,2.9451468,83.41,83.375,14.25972477]
[1770773620954,2.9451468,83.43,83.375,14.25972477]
[1770773621352,2.9451468,83.42,83.375,14.25972477]
[1770773621552,10.7953,83.424,83.375,14.25972477]
[1770773621758,2.9451468,83.42,83.375,14.25972477]
[1770773622657,2.9451468,83.43,83.381,14.27698576]
[1770773623059,6.04,83.429,83.381,14.27698576]
[1770773623853,6.04,83.429,83.38,2.9451468]
[1770773623854,6.04,83.429,83.385,14.26647689]
[1770773624355,2.9451468,83.42,83.385,14.26647689]
[1770773625751,6.04,83.429,83.385,14.26647689]
[1770773625959,2.9451468,83.42,83.385,14.26647689]
[1770773626560,6.04,83.429,83.386,14.24158943]
[1770773627962,2.9451468,83.42,83.386,14.24158943]
[1770773632457,6.04,83.429,83.375,14.22709127]
[1770773632754,2.9451468,83.41,83.375,14.22709127]
[1770773632959,2.9451468,83.42,83.375,14.22709127]
[1770773633565,2.9451468,83.42,83.377,14.23450907]
[1770773634683,13.7409468,83.42,83.377,14.23450907]
[1770773637072,2.9451468,83.42,83.383,14.20034062]
[1770773638674,2.9451468,83.42,83.384,10.8004]
[1770773638877,2.9451468,83.42,83.385,14.22100717]
[1770773639374,16.8347,83.429,83.387,14.22139471]
[1770773640072,6.04,83.429,83.387,14.22139471]
[1770773640677,6.04,83.429,83.389,14.22139471]
[1770773641272,2.9451468,83.45,83.404,11.20139471]
[1770773641669,2.9451468,83.46,83.404,11.20139471]
[1770773641873,2.9451468,83.46,83.4,2.9451468]
[1770773641874,2.9451468,83.46,83.415,11.19687889]
[1770773642765,2.9451468,83.46,83.416,10.7962]
[1770773642981,2.9451468,83.46,83.417,11.19687889]
[1770773643477,2.9451468,83.46,83.418,10.796]
[1770773643787,2.9451468,83.46,83.419,11.1370383]
[1770773644494,2.9451468,83.46,83.344,495.01658636]
[1770773644495,2.9451468,83.44,83.389,11.1370383]
[1770773644782,2.9451468,83.44,83.391,11.1370383]
[1770773645779,2.9451468,83.44,83.39,2.9451468]
[1770773645780,2.9451468,83.44,83.405,21.95122942]
[1770773645982,2.9451468,83.44,83.405,11.15362942]
[1770773646982,2.9451468,83.43,83.396,10.7988]
[1770773647287,2.9451468,83.43,83.396,11.15362942]
[1770773647979,2.9451468,83.42,83.396,11.15362942]
[1770773650577,10.7948,83.428,83.396,11.15362942]
[1770773650780,2.9451468,83.42,83.385,10.8002]
[1770773650978,10.7963,83.416,83.383,11.26929028]
[1770773651384,2.9451468,83.42,83.383,11.26929028]
[1770773654993,13.7397468,83.43,83.383,11.26929028]
[1770773655185,13.7397468,83.43,83.384,10.8003]
[1770773655385,13.7397468,83.43,83.385,11.27489563]
[1770773659189,2.9451468,83.43,83.385,11.27489563]
[1770773660690,13.7397468,83.43,83.387,10.8]
[1770773660896,2.9451468,83.43,83.388,11.25400993]
[1770773661694,10.7952,83.424,83.388,11.25400993]
[1770773662489,13.7396468,83.43,83.388,11.25400993]
[1770773668295,8.82505141,83.443,83.388,11.25400993]
[1770773668296,2.9451468,83.42,83.388,11.25400993]
[1770773668900,2.94474354,83.43,83.388,11.25400993]
[1770773669093,2.94474354,83.43,83.394,11.28672319]
[1770773669494,10.7917,83.452,83.41,11.28699323]
[1770773669700,8.8241505,83.459,83.41,11.28699323]
[1770773669901,2.94474354,83.46,83.41,11.28699323]
[1770773670496,13.73544354,83.46,83.41,14.23173677]
[1770773670700,2.94474354,83.46,83.411,11.28699323]
[1770773670892,2.94474354,83.45,83.411,11.28699323]
[1770773671496,10.7923,83.447,83.411,11.28699323]
[1770773672595,2.94474354,83.44,83.411,11.28699323]
[1770773672898,10.7934,83.439,83.4,11.24928851]
[1770773679712,10.7921,83.449,83.404,11.27910441]
[1770773680707,10.7921,83.449,83.405,10.7976]
[1770773680908,2.94474354,83.46,83.406,11.27910441]
[1770773681205,11.17540781,83.492,83.426,11.25496612]
[1770773681409,14.93314075,83.503,83.426,11.25496612]
[1770773681410,2.94474354,83.48,83.426,11.25496612]
[1770773682407,2.94474354,83.48,83.428,11.25496612]
[1770773682809,2.94474354,83.48,83.432,10.7941]
[1770773683010,2.94474354,83.48,83.433,11.25496612]
[1770773683414,2.94474354,83.49,83.441,11.22603044]
[1770773684709,2.94474354,83.49,83.443,10.7926]
[1770773684910,2.94474354,83.49,83.444,11.22603044]
[1770773685111,2.94474354,83.5,83.451,11.22603044]
[1770773686813,2.94474354,83.49,83.451,11.22603044]
[1770773687009,2.94474354,83.48,83.451,11.22603044]
[1770773687307,95.64,83.507,83.451,11.22603044]
[1770773687308,2.94474354,83.49,83.451,11.22603044]
[1770773687505,2.94474354,83.48,83.451,11.22603044]
[1770773688317,2.94474354,83.48,83.436,11.24407432]
[1770773688318,10.7884,83.477,83.436,11.24407432]
[1770773688615,2.94474354,83.47,83.436,11.24407432]
[1770773689208,10.7884,83.477,83.436,11.24407432]
[1770773690316,2.94474354,83.47,83.436,11.24407432]
[1770773690616,2.94474354,83.48,83.437,11.25082487]
[1770773691317,95.64,83.499,83.395,124.96]
[1770773691318,2.94474354,83.49,83.441,11.16407498]
[1770773692710,2.94474354,83.49,83.442,10.7928]
[1770773692910,2.94474354,83.49,83.443,11.16407498]
[1770773693211,10.7869,83.489,83.443,11.16407498]
[1770773694014,2.94474354,83.48,83.443,11.16407498]
[1770773695519,2.94474354,83.47,83.431,11.14052365]
[1770773695715,95.64,83.506,83.431,11.14052365]
[1770773695716,8.74229762,83.505,83.431,11.14052365]
[1770773696025,21.5642,83.526,83.431,11.14052365]
[1770773696026,2.94474354,83.49,83.431,11.14052365]
[1770773696625,2.94474354,83.48,83.431,11.14052365]
[1770773696816,2.94474354,83.48,83.448,9.66815188]
[1770773697213,2.94474354,83.49,83.448,9.66815188]
[1770773698015,2.94474354,83.49,83.453,9.66925153]
[1770773698217,2.94474354,83.5,83.453,9.66925153]
[1770773698419,2.93946375,83.5,83.453,9.66925153]
[1770773699720,2.93946375,83.5,83.461,10.7904]
[1770773699922,2.93946375,83.5,83.462,9.65407107]
[1770773700224,2.93946375,83.5,83.45,2.93946375]
[1770773700225,2.93946375,83.49,83.451,9.65407107]
[1770773701026,2.93946375,83.49,83.432,47.0]
[1770773701027,2.93946375,83.49,83.453,9.65407107]
[1770773701226,95.62,83.512,83.453,9.65407107]
[1770773701227,2.93946375,83.5,83.453,9.65407107]
[1770773702622,95.62,83.512,83.432,47.0]
[1770773702623,2.93946375,83.51,83.471,9.53206934]
[1770773703027,2.93946375,83.49,83.458,9.53206934]
[1770773703228,2.93946375,83.49,83.461,9.53206934]
[1770773703529,2.93946375,83.5,83.461,9.53206934]
[1770773703731,2.93946375,83.5,83.465,9.56151449]
[1770773704118,32.73480781,83.545,83.465,9.56151449]
[1770773704119,2.93946375,83.52,83.465,9.56151449]
[1770773705030,2.93946375,83.53,83.482,9.56151449]
[1770773706231,2.93946375,83.52,83.482,9.56151449]
[1770773706532,2.93946375,83.54,83.494,9.63949412]
[1770773707934,2.93946375,83.54,83.496,9.62219972]
[1770773709829,2.93946375,83.54,83.49,2.93946375]
[1770773709830,2.93946375,83.54,83.5,9.61880807]
[1770773710037,2.93946375,83.53,83.481,9.61880807]
[1770773710828,2.93946375,83.53,83.464,95.6]
[1770773710829,2.93946375,83.54,83.492,9.61880807]
[1770773711822,2.93946375,83.54,83.494,9.65396152]
[1770773713737,2.93946375,83.54,83.506,9.65230621]
[1770773715032,2.93946375,83.54,83.508,9.65230621]
[1770773715738,2.93946375,83.53,83.481,8.15668209]
[1770773715941,2.93946375,83.52,83.481,8.15668209]
[1770773716737,2.93946375,83.52,83.47,2.93946375]
[1770773716738,2.93946375,83.52,83.483,8.15668209]
[1770773716938,2.93946375,83.53,83.483,8.15668209]
[1770773717531,2.93946375,83.53,83.494,8.24389449]
[1770773718138,2.93946375,83.54,83.494,8.24389449]
[1770773718737,2.93946375,83.54,83.497,8.24389449]
[1770773719245,95.56,83.56,83.497,8.24389449]
[1770773719246,2.93946375,83.55,83.497,8.24389449]
[1770773720740,2.93946375,83.55,83.507,8.21976212]
[1770773721342,2.93946375,83.54,83.499,10.7855]
[1770773721642,2.93946375,83.54,83.5,8.21178778]
[1770773722842,2.93946375,83.54,83.501,10.7852]
[1770773723137,2.93946375,83.53,83.5,8.21178778]
[1770773723442,95.56,83.568,83.47,49.93946375]
[1770773723443,2.93946375,83.52,83.485,18.99508917]
[1770773723840,2.93946375,83.52,83.486,8.20788917]
[1770773724739,2.93946375,83.52,83.485,10.7872]
[1770773724740,2.93946375,83.53,83.49,8.20788917]
[1770773725539,2.93946375,83.52,83.49,8.20788917]
[1770773726641,2.93946375,83.53,83.49,8.20788917]
[1770773727244,2.93946375,83.53,83.491,8.2247934]
[1770773728934,2.93796883,83.53,83.491,8.2247934]
[1770773729341,2.93796883,83.53,83.492,10.7864]
[1770773730638,2.93796883,83.53,83.493,8.21043938]
[1770773730836,2.93796883,83.53,83.494,18.99663938]
[1770773731145,2.93796883,83.53,83.495,8.21043938]
[1770773731446,2.93796883,83.53,83.498,18.97119536]
[1770773732347,2.93796883,83.53,83.499,8.18549536]
[1770773736854,2.93796883,83.52,83.487,8.16847182]
[1770773740757,2.93796883,83.52,83.488,10.7868]
[1770773741653,2.93796883,83.51,83.477,10.7882]
[1770773741855,2.93796883,83.5,83.463,8.18401894]
[1770773742854,2.93796883,83.5,83.464,10.79]
[1770773743454,2.93796883,83.5,83.47,8.15986918]
[1770773747960,2.93796883,83.52,83.471,8.17128348]
[1770773748563,10.7842,83.51,83.471,8.17128348]
[1770773749165,13.72216883,83.51,83.471,8.17128348]
[1770773752253,2.93796883,83.51,83.471,8.17128348]
[1770773753164,10.783,83.519,83.472,8.15038279]
[1770773754666,0.68372734,83.551,83.501,4.03818049]
[1770773754860,2.93796883,83.55,83.501,4.03818049]
[1770773755055,0.68372734,83.549,83.501,4.03818049]
[1770773755260,2.93796883,83.54,83.501,4.03818049]
[1770773755569,0.68372734,83.549,83.501,4.03818049]
[1770773755965,95.58,83.581,83.512,4.03818049]
[1770773755966,2.93796883,83.56,83.512,4.03818049]
[1770773757062,0.70541377,83.559,83.512,4.03818049]
[1770773758464,10.7775,83.562,83.5,2.93796883]
[1770773758465,0.78882451,83.549,83.501,10.7852]
[1770773758768,0.78882451,83.539,83.5,4.03818049]
[1770773759764,2.93796883,83.52,83.478,4.03818049]
[1770773760164,2.93796883,83.51,83.478,4.03818049]
[1770773761469,3.72578239,83.52,83.478,4.03818049]
[1770773762371,2.93796883,83.53,83.484,4.03818049]
[1770773762769,0.93501387,83.545,83.484,4.03818049]
[1770773762770,2.93796883,83.54,83.484,4.03818049]
[1770773763166,2.93796883,83.52,83.484,4.03818049]
[1770773763467,2.93796883,83.53,83.484,4.03818049]
[1770773764774,2.93796883,83.53,83.487,4.03818049]
[1770773765775,2.93796883,83.53,83.491,4.03818049]
[1770773766170,0.93501387,83.538,83.491,4.03818049]
[1770773766373,2.93796883,83.54,83.491,4.03818049]
[1770773767669,2.93796883,83.54,83.492,10.7864]
[1770773767872,2.93796883,83.54,83.493,4.03818049]
[1770773768672,14.68365282,83.55,83.501,4.03818049]
[1770773769271,2.93796883,83.54,83.501,4.03818049]
[1770773770275,2.93796883,83.54,83.49,2.93796883]
[1770773770276,2.93796883,83.53,83.492,4.03818049]
[1770773770472,0.96851453,83.539,83.492,4.03818049]
[1770773770675,2.93796883,83.56,83.516,4.03818049]
[1770773771674,2.93796883,83.57,83.526,4.03818049]
[1770773773981,2.93796883,83.56,83.501,4.03818049]
[1770773774375,0.99632748,83.569,83.517,4.03818049]
[1770773774681,0.99632748,83.569,83.521,4.03818049]
[1770773775382,0.99632748,83.569,83.526,4.03818049]
[1770773775980,2.93796883,83.57,83.526,4.03818049]
[1770773776285,2.93796883,83.56,83.526,4.03818049]
[1770773776687,2.93796883,83.56,83.53,10.7814]
[1770773777385,2.93796883,83.57,83.53,10.7814]
[1770773781591,2.93796883,83.57,83.53,14.84762231]
[1770773782985,2.93796883,83.57,83.534,4.06622231]
[1770773784790,3.899717,83.56,83.524,10.7823]
[1770773785092,2.93796883,83.56,83.525,4.06030324]
[1770773786696,2.93796883,83.56,83.512,47.0]
[1770773786697,10.777,83.566,83.527,4.06030324]
[1770773790088,2.93796883,83.56,83.527,4.06030324]
[1770773790893,2.9354519,83.56,83.527,4.06030324]
[1770773791496,0.92060838,83.566,83.527,4.06030324]
[1770773791893,3.33662719,83.57,83.533,4.06030324]
[1770773793299,0.41765076,83.569,83.533,4.06030324]
[1770773794602,2.9354519,83.56,83.533,4.06030324]
[1770773795697,2.9354519,83.56,83.518,4.06030324]
[1770773795698,10.7781,83.557,83.518,4.06030324]
[1770773795999,2.9354519,83.55,83.518,4.06030324]
[1770773796394,0.3943827,83.549,83.508,10.7842]
[1770773796707,95.56,83.589,83.497,4.06030324]
[1770773796708,0.3943827,83.539,83.497,4.06030324]
[1770773797099,2.9354519,83.53,83.497,4.06030324]
[1770773803202,0.3943827,83.539,83.497,4.06030324]
[1770773803406,2.9354519,83.55,83.497,4.06030324]
[1770773804415,10.7791,83.549,83.501,4.06030324]
[1770773804603,2.9354519,83.54,83.501,4.06030324]
[1770773805813,2.9354519,83.54,83.503,4.06030324]
[1770773806105,2.9354519,83.53,83.503,4.06030324]
[1770773809205,3.29834367,83.54,83.503,4.06030324]
[1770773810504,10.7811,83.533,83.503,4.06030324]
[1770773811611,2.9354519,83.53,83.503,4.06030324]
[1770773813714,2.93756096,83.53,83.503,4.06030324]
[1770773820415,0.35559708,83.529,83.486,3.94918782]
[1770773820716,95.54,83.565,83.486,3.94918782]
[1770773820717,2.93756096,83.52,83.486,3.94918782]
[1770773821019,2.93756096,83.53,83.486,3.94918782]
[1770773821314,10.7807,83.537,83.493,3.94918782]
[1770773821518,0.35559708,83.544,83.493,3.94918782]
[1770773821720,2.93756096,83.55,83.501,3.97183454]
[1770773822215,11.08960364,83.548,83.503,3.97183454]
[1770773822718,0.31030364,83.547,83.503,3.97183454]
[1770773823120,11.09010364,83.544,83.503,3.97183454]
[1770773823419,0.58939918,83.543,83.503,3.97183454]
[1770773824219,3.52696014,83.54,83.503,3.97183454]
[1770773824614,0.58939918,83.539,83.503,3.97183454]
[1770773825616,0.59308445,83.548,83.503,3.97183454]
[1770773826728,0.59308445,83.548,83.506,3.853602]
[1770773827726,10.7797,83.545,83.506,3.853602]
[1770773828622,10.7797,83.545,83.509,3.853602]
[1770773829422,10.7797,83.545,83.5,2.93756096]
[1770773829423,2.93756096,83.55,83.518,3.853602]
[1770773829717,2.93756096,83.57,83.518,3.853602]
[1770773830109,0.63008832,83.569,83.518,3.853602]
[1770773830810,10.777,83.565,83.529,10.7815]
[1770773831311,10.777,83.565,83.53,3.853602]
[1770773832125,0.63008832,83.569,83.53,3.853602]
[1770773834515,10.7768,83.567,83.53,3.853602]
[1770773834916,0.5994732,83.566,83.53,3.853602]
[1770773835121,0.5994732,83.559,83.522,10.7825]
[1770773835425,0.5994732,83.559,83.523,3.853602]
[1770773836922,0.5994732,83.559,83.527,10.7819]
[1770773837224,2.93756096,83.57,83.528,3.853602]
[1770773837528,0.58275641,83.569,83.53,3.853602]
[1770773838820,10.7767,83.568,83.53,3.853602]
[1770773839331,11.35945641,83.568,83.53,3.853602]
[1770773839529,2.93756096,83.56,83.53,3.853602]
[1770773840232,2.93756096,83.56,83.534,3.93381839]
[1770773841431,10.7767,83.568,83.534,3.93381839]
[1770773845136,11.39727959,83.568,83.534,3.93381839]
[1770773845635,2.93756096,83.56,83.534,3.93381839]
[1770773848733,11.39727959,83.568,83.534,3.93381839]
[1770773848934,11.38029766,83.566,83.534,3.93381839]
[1770773849135,0.60329766,83.565,83.534,3.93381839]
[1770773850839,2.93548285,83.56,83.534,3.93381839]
[1770773851538,0.60329766,83.565,83.534,3.93381839]
[1770773851838,0.62868289,83.576,83.534,3.93381839]
[1770773852238,0.62868289,83.576,83.541,3.8130955]
[1770773853935,2.93548285,83.57,83.541,3.8130955]
[1770773854837,0.65849617,83.573,83.541,3.8130955]
[1770773860741,11.27213202,83.572,83.541,3.8130955]
[1770773862142,0.49603202,83.572,83.541,3.8130955]
[1770773863139,0.49580707,83.569,83.53,3.87953341]
[1770773864844,10.7769,83.566,83.532,3.88189804]
[1770773870740,2.93548285,83.57,83.532,3.88189804]
[1770773870945,10.7761,83.572,83.532,3.88189804]
[1770773874952,11.30524051,83.579,83.537,3.92042322]
[1770773875152,0.52894752,83.578,83.537,3.92042322]
[1770773876744,11.30115619,83.588,83.539,3.92042322]
[1770773876946,8.67393379,83.587,83.539,3.92042322]
[1770773877146,11.30115619,83.588,83.54,2.93548285]
[1770773877453,11.30115619,83.588,83.541,3.92042322]
[1770773877655,0.52705619,83.588,83.549,3.92042322]
[1770773879157,10.7743,83.587,83.549,3.92042322]
[1770773880159,11.31088334,83.587,83.549,3.92042322]
[1770773880456,2.93548285,83.58,83.549,3.92042322]
[1770773882457,0.5151713,83.579,83.541,10.7801]
[1770773882656,0.5151713,83.579,83.526,47.0]
[1770773882657,0.5151713,83.579,83.542,3.92042322]
[1770773883758,0.5151713,83.579,83.544,3.92042322]
[1770773883960,10.7743,83.587,83.544,3.92042322]